[Event "*** SCC Grand Prix: Titled Tuesday Blitz"]
[Site "Chess.com"]
[Date "2020.06.09"]
[Round "6"]
[White "gui_borba"]
[Black "Lenyas66"]
[Result "0-1"]
[WhiteElo "2355"]
[BlackElo "2578"]
[TimeControl "180+1"]
[EndTime "10:07:18 PDT"]
[Termination "Lenyas66 won by resignation"]

1. d4 {[%clk 0:03:00.9]} 1... e6 {[%clk 0:03:00.1]} 2. e4 {[%clk 0:03:00.1]}
2... d5 {[%clk 0:02:59.1]} 3. e5 {[%clk 0:03:00.5]} 3... c5 {[%clk 0:02:58.5]}
4. c3 {[%clk 0:03:00.4]} 4... Nc6 {[%clk 0:02:58.8]} 5. Nf3 {[%clk 0:03:00.9]}
5... Qb6 {[%clk 0:02:59.1]} 6. a3 {[%clk 0:03:01.4]} 6... c4 {[%clk 0:02:58.7]}
7. Nbd2 {[%clk 0:03:00.5]} 7... Na5 {[%clk 0:02:58.6]} 8. g3 {[%clk 0:03:00.3]}
8... Bd7 {[%clk 0:02:56.5]} 9. Bg2 {[%clk 0:02:59.4]} 9... Ne7 {[%clk
0:02:51.7]} 10. O-O {[%clk 0:02:56.7]} 10... Qc7 {[%clk 0:02:49.3]} 11. Re1
{[%clk 0:02:47.3]} 11... Nc8 {[%clk 0:02:43.8]} 12. Rb1 {[%clk 0:02:46]} 12...
Nb6 {[%clk 0:02:43.5]} 13. Nf1 {[%clk 0:02:45.9]} 13... Nb3 {[%clk 0:02:42.5]}
14. h4 {[%clk 0:02:40.1]} 14... h6 {[%clk 0:02:40.5]} 15. h5 {[%clk 0:02:39.2]}
15... Be7 {[%clk 0:02:37.9]} 16. N1h2 {[%clk 0:02:38.1]} 16... O-O-O {[%clk
0:02:36.6]} 17. Ng4 {[%clk 0:02:33]} 17... Rdg8 {[%clk 0:02:23.4]} 18. Bf4
{[%clk 0:02:19.2]} 18... Qd8 {[%clk 0:02:16.6]} 19. Nd2 {[%clk 0:02:16.6]} 19...
Nxd2 {[%clk 0:02:07.6]} 20. Qxd2 {[%clk 0:02:17.5]} 20... g5 {[%clk 0:01:53.1]}
21. Be3 {[%clk 0:02:07.5]} 21... Rf8 {[%clk 0:01:43.4]} 22. Bf3 {[%clk
0:02:05.3]} 22... f5 {[%clk 0:01:40.8]} 23. exf6 {[%clk 0:02:04.7]} 23... Bxf6
{[%clk 0:01:40.5]} 24. Nxf6 {[%clk 0:02:02]} 24... Rxf6 {[%clk 0:01:38.2]} 25.
Bg4 {[%clk 0:02:02.2]} 25... Rhf8 {[%clk 0:01:37.7]} 26. Kg2 {[%clk 0:01:52.1]}
26... Kb8 {[%clk 0:01:36.2]} 27. f4 {[%clk 0:01:48.5]} 27... gxf4 {[%clk
0:01:32.9]} 28. Bxf4+ {[%clk 0:01:49.4]} 28... Rxf4 {[%clk 0:01:32.8]} 29. gxf4
{[%clk 0:01:46.4]} 29... Qh4 {[%clk 0:01:32.8]} 30. Qe2 {[%clk 0:01:23.8]} 30...
Rg8 {[%clk 0:01:29.5]} 31. Kf3 {[%clk 0:00:50.3]} 31... Qxg4+ {[%clk 0:01:14.4]}
32. Ke3 {[%clk 0:00:50.2]} 32... Qf5 {[%clk 0:01:08.2]} 33. Rg1 {[%clk
0:00:44.9]} 33... Qe4+ {[%clk 0:01:05.5]} 34. Kd2 {[%clk 0:00:44.9]} 34... Qxf4+
{[%clk 0:01:02.1]} 35. Kc2 {[%clk 0:00:42.4]} 35... Ba4+ {[%clk 0:00:58]} 36. b3
{[%clk 0:00:41.1]} 36... Bxb3+ {[%clk 0:00:54.6]} 37. Kb2 {[%clk 0:00:35.2]}
37... Rxg1 {[%clk 0:00:48.4]} 38. Rxg1 {[%clk 0:00:34.6]} 38... Qe4 {[%clk
0:00:33]} 39. Qxe4 {[%clk 0:00:34]} 39... dxe4 {[%clk 0:00:32.8]} 40. Rg6 {[%clk
0:00:34.9]} 40... Na4+ {[%clk 0:00:30.1]} 41. Kc1 {[%clk 0:00:33.9]} 41... Nxc3
{[%clk 0:00:30.1]} 42. Rxh6 {[%clk 0:00:34]} 42... e3 {[%clk 0:00:25.4]} 43.
Rxe6 {[%clk 0:00:33.6]} 43... Ne2+ {[%clk 0:00:18.4]} 44. Kb2 {[%clk 0:00:30.1]}
44... c3+ {[%clk 0:00:17.4]} 45. Kxb3 {[%clk 0:00:29.8]} 45... c2 {[%clk
0:00:17.8]} 46. Rxe3 {[%clk 0:00:20.8]} 46... c1=Q {[%clk 0:00:17.5]} 47. Rxe2
{[%clk 0:00:21]} 47... Qd1+ {[%clk 0:00:17.4]} 48. Rc2 {[%clk 0:00:21]} 48...
Qxd4 {[%clk 0:00:16.9]} 49. h6 {[%clk 0:00:18.5]} 49... Qd5+ {[%clk 0:00:16.1]}
50. Rc4 {[%clk 0:00:18.9]} 50... Qf3+ {[%clk 0:00:15.5]} 51. Kb4 {[%clk
0:00:19.3]} 51... Qf8+ {[%clk 0:00:14.1]} 52. Rc5 {[%clk 0:00:19.8]} 52... Qxh6
{[%clk 0:00:14.2]} 53. Re5 {[%clk 0:00:19.9]} 53... Qd6+ {[%clk 0:00:13.5]} 0-1

[Event "*** SCC Grand Prix: Titled Tuesday Blitz"]
[Site "Chess.com"]
[Date "2020.06.09"]
[Round "6"]
[White "Dr_crypt"]
[Black "joksijoksi"]
[Result "0-1"]
[WhiteElo "2455"]
[BlackElo "2365"]
[TimeControl "180+1"]
[EndTime "10:07:20 PDT"]
[Termination "joksijoksi won by checkmate"]

1. d4 {[%clk 0:03:00.7]} 1... e6 {[%clk 0:02:58]} 2. Nf3 {[%clk 0:03:00]} 2...
d5 {[%clk 0:02:58.4]} 3. c4 {[%clk 0:02:59.3]} 3... c6 {[%clk 0:02:58.7]} 4. e3
{[%clk 0:02:59.1]} 4... f5 {[%clk 0:02:58.7]} 5. Ne5 {[%clk 0:02:55.2]} 5... Nf6
{[%clk 0:02:58.2]} 6. Nd2 {[%clk 0:02:54.2]} 6... Bd6 {[%clk 0:02:57.2]} 7. Ndf3
{[%clk 0:02:54]} 7... O-O {[%clk 0:02:57.4]} 8. Bd3 {[%clk 0:02:53.8]} 8... Ne4
{[%clk 0:02:56.1]} 9. O-O {[%clk 0:02:53.1]} 9... Nd7 {[%clk 0:02:56.6]} 10.
Nxd7 {[%clk 0:02:50.3]} 10... Bxd7 {[%clk 0:02:56.2]} 11. Ne5 {[%clk 0:02:51.1]}
11... Be8 {[%clk 0:02:55.2]} 12. f3 {[%clk 0:02:46.7]} 12... Bh5 {[%clk
0:02:51.4]} 13. Qc2 {[%clk 0:02:45.1]} 13... Nf6 {[%clk 0:02:42.4]} 14. cxd5
{[%clk 0:02:43.5]} 14... cxd5 {[%clk 0:02:40.9]} 15. f4 {[%clk 0:02:40.4]} 15...
Ne4 {[%clk 0:02:39.1]} 16. Bxe4 {[%clk 0:02:40.4]} 16... fxe4 {[%clk 0:02:40]}
17. Bd2 {[%clk 0:02:28.2]} 17... Bxe5 {[%clk 0:02:20.4]} 18. fxe5 {[%clk
0:02:27.4]} 18... Rxf1+ {[%clk 0:02:16.9]} 19. Rxf1 {[%clk 0:02:26.7]} 19... Rc8
{[%clk 0:02:16.7]} 20. Qb3 {[%clk 0:02:26]} 20... Qb6 {[%clk 0:02:16.5]} 21. Qa3
{[%clk 0:02:16.5]} 21... Qc6 {[%clk 0:02:05]} 22. Qe7 {[%clk 0:02:11.6]} 22...
h6 {[%clk 0:01:47.1]} 23. Rc1 {[%clk 0:01:54.8]} 23... Qe8 {[%clk 0:01:36.1]}
24. Qxb7 {[%clk 0:01:54.5]} 24... Rb8 {[%clk 0:00:57.4]} 25. Qa6 {[%clk
0:01:45.1]} 25... Rb6 {[%clk 0:00:56.9]} 26. Qa3 {[%clk 0:01:34.5]} 26... Be2
{[%clk 0:00:53]} 27. b3 {[%clk 0:01:18.2]} 27... Rb7 {[%clk 0:00:45.9]} 28. Bb4
{[%clk 0:01:16]} 28... Rf7 {[%clk 0:00:43.4]} 29. Qb2 {[%clk 0:01:13.9]} 29...
Qc6 {[%clk 0:00:39.6]} 30. h3 {[%clk 0:01:03.5]} 30... Qb5 {[%clk 0:00:38.4]}
31. Bd6 {[%clk 0:00:58]} 31... Qd3 {[%clk 0:00:37.3]} 32. Qc3 {[%clk 0:00:50.4]}
32... Rf1+ {[%clk 0:00:36.7]} 33. Kh2 {[%clk 0:00:50.7]} 33... Rf2 {[%clk
0:00:31.8]} 34. Kg3 {[%clk 0:00:36.5]} 34... Bf3 {[%clk 0:00:16]} 35. gxf3
{[%clk 0:00:13.1]} 35... Rxf3+ {[%clk 0:00:10.7]} 36. Kg4 {[%clk 0:00:13.6]}
36... Qe2 {[%clk 0:00:07.1]} 37. Qe1 {[%clk 0:00:10.5]} 37... Qg2+ {[%clk
0:00:05]} 38. Kh5 {[%clk 0:00:10.6]} 38... Qg5# {[%clk 0:00:04.4]} 0-1

[Event "*** SCC Grand Prix: Titled Tuesday Blitz"]
[Site "Chess.com"]
[Date "2020.06.09"]
[Round "6"]
[White "Evgeny81"]
[Black "Salem-AR"]
[Result "1-0"]
[WhiteElo "2766"]
[BlackElo "2959"]
[TimeControl "180+1"]
[EndTime "10:07:22 PDT"]
[Termination "Evgeny81 won on time"]

1. d4 {[%clk 0:03:00.9]} 1... Nf6 {[%clk 0:02:59.9]} 2. Nf3 {[%clk 0:03:00.6]}
2... g6 {[%clk 0:03:00.4]} 3. Bf4 {[%clk 0:03:00.1]} 3... Bg7 {[%clk 0:03:00.6]}
4. Nbd2 {[%clk 0:03:00.1]} 4... d5 {[%clk 0:02:55.2]} 5. e3 {[%clk 0:02:59.1]}
5... O-O {[%clk 0:02:54.5]} 6. h3 {[%clk 0:02:59.3]} 6... c5 {[%clk 0:02:53.7]}
7. c3 {[%clk 0:02:59.1]} 7... Nc6 {[%clk 0:02:52.1]} 8. Bd3 {[%clk 0:02:59]}
8... Nd7 {[%clk 0:02:52]} 9. O-O {[%clk 0:02:54.5]} 9... e5 {[%clk 0:02:52.2]}
10. dxe5 {[%clk 0:02:54.7]} 10... Ndxe5 {[%clk 0:02:53.1]} 11. Nxe5 {[%clk
0:02:54.9]} 11... Nxe5 {[%clk 0:02:54]} 12. Be2 {[%clk 0:02:54.3]} 12... Re8
{[%clk 0:02:47.9]} 13. Nf3 {[%clk 0:02:53.7]} 13... Nc6 {[%clk 0:02:45.6]} 14.
Qc2 {[%clk 0:02:46.8]} 14... d4 {[%clk 0:01:53.3]} 15. cxd4 {[%clk 0:02:44]}
15... cxd4 {[%clk 0:01:53.1]} 16. Rad1 {[%clk 0:02:26.5]} 16... Bf5 {[%clk
0:01:51.2]} 17. Qb3 {[%clk 0:02:24.5]} 17... Qb6 {[%clk 0:01:45.9]} 18. Bc4
{[%clk 0:02:13.9]} 18... Qxb3 {[%clk 0:01:37.9]} 19. Bxb3 {[%clk 0:02:14.8]}
19... dxe3 {[%clk 0:01:18.7]} 20. Bxe3 {[%clk 0:02:10.1]} 20... Be6 {[%clk
0:00:38.1]} 21. Bxe6 {[%clk 0:02:05.6]} 21... Rxe6 {[%clk 0:00:39]} 22. Rd7
{[%clk 0:02:02.4]} 22... Re7 {[%clk 0:00:28]} 23. Rxe7 {[%clk 0:01:59]} 23...
Nxe7 {[%clk 0:00:27.7]} 24. Rd1 {[%clk 0:01:59.4]} 24... Nf5 {[%clk 0:00:24.9]}
25. Bf4 {[%clk 0:01:52.6]} 25... Bxb2 {[%clk 0:00:20.4]} 26. Rb1 {[%clk
0:01:50]} 26... Bf6 {[%clk 0:00:12.3]} 27. Rxb7 {[%clk 0:01:49.5]} 27... a5
{[%clk 0:00:10.6]} 28. a4 {[%clk 0:01:34.4]} 28... Re8 {[%clk 0:00:09.1]} 29. g4
{[%clk 0:01:22.7]} 29... Re4 {[%clk 0:00:06]} 30. Bg5 {[%clk 0:01:22.4]} 30...
Nd4 {[%clk 0:00:05.5]} 31. Bxf6 {[%clk 0:01:16]} 31... Nxf3+ {[%clk 0:00:06]}
32. Kg2 {[%clk 0:01:15.4]} 32... Ne1+ {[%clk 0:00:06.6]} 33. Kf1 {[%clk
0:01:15.4]} 33... Re8 {[%clk 0:00:07.5]} 34. Ra7 {[%clk 0:00:46.4]} 34... Nd3
{[%clk 0:00:07.6]} 35. Rxa5 {[%clk 0:00:44.6]} 35... h6 {[%clk 0:00:08.1]} 36.
h4 {[%clk 0:00:32.2]} 36... Kh7 {[%clk 0:00:07.7]} 37. Ra7 {[%clk 0:00:30.4]}
37... g5 {[%clk 0:00:08]} 38. h5 {[%clk 0:00:28.9]} 38... Re1+ {[%clk 0:00:04]}
39. Kg2 {[%clk 0:00:28.6]} 39... Nf4+ {[%clk 0:00:04.5]} 40. Kf3 {[%clk
0:00:28]} 40... Nd5 {[%clk 0:00:04.2]} 41. Rxf7+ {[%clk 0:00:20.9]} 41... Kg8
{[%clk 0:00:03.9]} 42. Rg7+ {[%clk 0:00:21.2]} 42... Kf8 {[%clk 0:00:04.6]} 43.
Rg6 {[%clk 0:00:20.5]} 43... Kf7 {[%clk 0:00:03.4]} 44. Bd4 {[%clk 0:00:17.8]}
44... Rd1 {[%clk 0:00:03.5]} 45. Ke4 {[%clk 0:00:16.7]} 45... Nf4 {[%clk
0:00:01.8]} 46. Rxh6 {[%clk 0:00:15.4]} 1-0

[Event "*** SCC Grand Prix: Titled Tuesday Blitz"]
[Site "Chess.com"]
[Date "2020.06.09"]
[Round "6"]
[White "GigaQuparadze"]
[Black "Volodar_Murzin"]
[Result "0-1"]
[WhiteElo "2829"]
[BlackElo "2724"]
[TimeControl "180+1"]
[EndTime "10:07:22 PDT"]
[Termination "Volodar_Murzin won by resignation"]

1. e4 {[%clk 0:03:00.9]} 1... c6 {[%clk 0:02:58.8]} 2. d4 {[%clk 0:03:00.3]}
2... d5 {[%clk 0:02:59.7]} 3. Nc3 {[%clk 0:02:58.6]} 3... dxe4 {[%clk
0:03:00.6]} 4. Nxe4 {[%clk 0:02:59.4]} 4... Bf5 {[%clk 0:03:01.2]} 5. Ng3 {[%clk
0:02:59.5]} 5... Bg6 {[%clk 0:03:01.8]} 6. h4 {[%clk 0:02:59.9]} 6... h6 {[%clk
0:03:02.5]} 7. Nf3 {[%clk 0:03:00.4]} 7... Nd7 {[%clk 0:03:02.2]} 8. h5 {[%clk
0:03:00.7]} 8... Bh7 {[%clk 0:03:02.6]} 9. Bd3 {[%clk 0:03:01.2]} 9... Bxd3
{[%clk 0:03:03.2]} 10. Qxd3 {[%clk 0:03:02.1]} 10... e6 {[%clk 0:03:03.8]} 11.
Bf4 {[%clk 0:03:02.3]} 11... Qa5+ {[%clk 0:03:03.1]} 12. Bd2 {[%clk 0:03:02.3]}
12... Bb4 {[%clk 0:03:02.3]} 13. c3 {[%clk 0:03:02.4]} 13... Be7 {[%clk
0:03:01.9]} 14. c4 {[%clk 0:03:02.6]} 14... Qa6 {[%clk 0:02:33.9]} 15. O-O
{[%clk 0:02:54.4]} 15... Ngf6 {[%clk 0:02:30.4]} 16. a4 {[%clk 0:02:44.2]} 16...
O-O {[%clk 0:02:22.7]} 17. b4 {[%clk 0:02:43.5]} 17... Rad8 {[%clk 0:02:16.9]}
18. b5 {[%clk 0:02:24.6]} 18... Qb6 {[%clk 0:02:14.2]} 19. Qe2 {[%clk
0:02:23.3]} 19... c5 {[%clk 0:01:54.8]} 20. d5 {[%clk 0:02:21.7]} 20... exd5
{[%clk 0:01:32.7]} 21. a5 {[%clk 0:02:06.4]} 21... Qe6 {[%clk 0:01:16.3]} 22.
Qd3 {[%clk 0:01:54.8]} 22... Bd6 {[%clk 0:00:52.2]} 23. Rfe1 {[%clk 0:01:51.2]}
23... Ne5 {[%clk 0:00:30.6]} 24. Nxe5 {[%clk 0:01:12.9]} 24... Bxe5 {[%clk
0:00:31.5]} 25. Nf5 {[%clk 0:01:12.9]} 25... dxc4 {[%clk 0:00:26.6]} 26. Qc2
{[%clk 0:01:01.9]} 26... Rxd2 {[%clk 0:00:24.6]} 27. Nxh6+ {[%clk 0:01:01.8]}
27... gxh6 {[%clk 0:00:24.9]} 28. Qxd2 {[%clk 0:01:02.4]} 28... Qf5 {[%clk
0:00:25.4]} 29. Ra4 {[%clk 0:00:55.1]} 29... Qxh5 {[%clk 0:00:22.3]} 30. Rxc4
{[%clk 0:00:49.2]} 30... Re8 {[%clk 0:00:15.8]} 31. g3 {[%clk 0:00:42.6]} 31...
Bd4 {[%clk 0:00:12.6]} 32. Rxe8+ {[%clk 0:00:33.7]} 32... Nxe8 {[%clk
0:00:13.5]} 33. Qf4 {[%clk 0:00:33]} 33... Qd5 {[%clk 0:00:09.8]} 34. Rc1 {[%clk
0:00:33]} 34... Nd6 {[%clk 0:00:08.9]} 35. Qxh6 {[%clk 0:00:32]} 35... Ne4
{[%clk 0:00:05]} 36. Qf4 {[%clk 0:00:27.2]} 36... Nxf2 {[%clk 0:00:04.7]} 37.
Kf1 {[%clk 0:00:24.9]} 37... Qh1+ {[%clk 0:00:04.7]} 38. Ke2 {[%clk 0:00:24.8]}
38... Qh5+ {[%clk 0:00:05]} 39. g4 {[%clk 0:00:20.4]} 39... Qd5 {[%clk
0:00:05.4]} 40. b6 {[%clk 0:00:18.3]} 40... axb6 {[%clk 0:00:05.5]} 41. axb6
{[%clk 0:00:18.5]} 41... Qe6+ {[%clk 0:00:06.1]} 42. Kf3 {[%clk 0:00:18.3]}
42... Qxb6 {[%clk 0:00:06.3]} 43. Qg5+ {[%clk 0:00:15.9]} 43... Kf8 {[%clk
0:00:06.2]} 44. Re1 {[%clk 0:00:14.1]} 44... Qb3+ {[%clk 0:00:06.5]} 45. Kf4
{[%clk 0:00:09.2]} 45... Nh3+ {[%clk 0:00:06.2]} 0-1

[Event "*** SCC Grand Prix: Titled Tuesday Blitz"]
[Site "Chess.com"]
[Date "2020.06.09"]
[Round "6"]
[White "2L8IWUN"]
[Black "Gareth-Bale11"]
[Result "0-1"]
[WhiteElo "2550"]
[BlackElo "2785"]
[TimeControl "180+1"]
[EndTime "10:07:24 PDT"]
[Termination "Gareth-Bale11 won on time"]

1. e4 {[%clk 0:03:00.9]} 1... c5 {[%clk 0:03:00]} 2. a3 {[%clk 0:02:59.1]} 2...
d5 {[%clk 0:02:58.8]} 3. exd5 {[%clk 0:02:42.1]} 3... Qxd5 {[%clk 0:02:55.6]} 4.
Nf3 {[%clk 0:02:39]} 4... Nf6 {[%clk 0:02:53.7]} 5. Nc3 {[%clk 0:02:34.3]} 5...
Qd8 {[%clk 0:02:48.7]} 6. Bc4 {[%clk 0:02:29.6]} 6... Nc6 {[%clk 0:02:46.4]} 7.
O-O {[%clk 0:02:20.2]} 7... Bg4 {[%clk 0:02:46.1]} 8. h3 {[%clk 0:01:59.3]} 8...
Bh5 {[%clk 0:02:45.3]} 9. d3 {[%clk 0:01:58.9]} 9... e6 {[%clk 0:02:43]} 10. Re1
{[%clk 0:01:47.7]} 10... Be7 {[%clk 0:02:40.7]} 11. Bf4 {[%clk 0:01:42.3]} 11...
O-O {[%clk 0:02:37.6]} 12. Ne4 {[%clk 0:01:14]} 12... Nd5 {[%clk 0:02:10.9]} 13.
Bh2 {[%clk 0:01:09.8]} 13... Nd4 {[%clk 0:02:06.3]} 14. g4 {[%clk 0:01:05]}
14... Nxf3+ {[%clk 0:02:05.9]} 15. Qxf3 {[%clk 0:01:05.9]} 15... Bg6 {[%clk
0:02:06.2]} 16. Rad1 {[%clk 0:01:03.5]} 16... Qd7 {[%clk 0:02:03.7]} 17. Qe2
{[%clk 0:00:56.5]} 17... Rae8 {[%clk 0:02:01.6]} 18. Bg3 {[%clk 0:00:55.1]}
18... a6 {[%clk 0:01:59.8]} 19. d4 {[%clk 0:00:55.2]} 19... cxd4 {[%clk
0:01:57.3]} 20. Rxd4 {[%clk 0:00:53.8]} 20... Qc6 {[%clk 0:01:56.7]} 21. Bb3
{[%clk 0:00:51.7]} 21... f5 {[%clk 0:01:49.9]} 22. gxf5 {[%clk 0:00:43.4]} 22...
Bxf5 {[%clk 0:01:49]} 23. h4 {[%clk 0:00:40]} 23... Qb6 {[%clk 0:01:39.1]} 24.
Red1 {[%clk 0:00:33.8]} 24... Kh8 {[%clk 0:01:31.8]} 25. h5 {[%clk 0:00:28.9]}
25... h6 {[%clk 0:01:21.3]} 26. Qd2 {[%clk 0:00:28.6]} 26... Bg4 {[%clk
0:01:19.4]} 27. Re1 {[%clk 0:00:26.9]} 27... Bxh5 {[%clk 0:01:17.2]} 28. Be5
{[%clk 0:00:27]} 28... Kg8 {[%clk 0:01:09]} 29. Ba2 {[%clk 0:00:18.3]} 29... Bf3
{[%clk 0:00:57.9]} 30. c4 {[%clk 0:00:16.9]} 30... Nf6 {[%clk 0:00:47.3]} 31.
Nd6 {[%clk 0:00:15.8]} 31... Rd8 {[%clk 0:00:39.7]} 32. c5 {[%clk 0:00:14.9]}
32... Qxc5 {[%clk 0:00:29]} 33. Bxe6+ {[%clk 0:00:15]} 33... Kh8 {[%clk
0:00:24.3]} 34. Nf5 {[%clk 0:00:13.1]} 34... Rxd4 {[%clk 0:00:20.8]} 35. Bxd4
{[%clk 0:00:14]} 35... Qc7 {[%clk 0:00:19.2]} 36. Nxe7 {[%clk 0:00:09.4]} 36...
Qxe7 {[%clk 0:00:18.4]} 37. Bg4 {[%clk 0:00:09.8]} 37... Qxe1+ {[%clk
0:00:08.9]} 38. Qxe1 {[%clk 0:00:08.4]} 38... Nxg4 {[%clk 0:00:09.3]} 39. Qe7
{[%clk 0:00:08.3]} 39... Rg8 {[%clk 0:00:09.1]} 40. Qd6 {[%clk 0:00:04.1]} 40...
Kh7 {[%clk 0:00:08.3]} 41. Qe6 {[%clk 0:00:03]} 41... Rf8 {[%clk 0:00:06.7]} 42.
Qe7 {[%clk 0:00:02.9]} 42... Rg8 {[%clk 0:00:06.9]} 43. Qe6 {[%clk 0:00:03.2]}
43... Rd8 {[%clk 0:00:06.1]} 44. Bf6 {[%clk 0:00:01.8]} 44... Rd1+ {[%clk
0:00:05.4]} 0-1

[Event "*** SCC Grand Prix: Titled Tuesday Blitz"]
[Site "Chess.com"]
[Date "2020.06.09"]
[Round "6"]
[White "Vandros57"]
[Black "mortngabriel"]
[Result "0-1"]
[WhiteElo "2233"]
[BlackElo "2461"]
[TimeControl "180+1"]
[EndTime "10:07:26 PDT"]
[Termination "mortngabriel won on time"]

1. d4 {[%clk 0:03:00.9]} 1... Nf6 {[%clk 0:02:58.8]} 2. Nf3 {[%clk 0:02:59.4]}
2... c5 {[%clk 0:02:59.3]} 3. d5 {[%clk 0:02:57.2]} 3... b5 {[%clk 0:02:59.1]}
4. a4 {[%clk 0:02:44.5]} 4... b4 {[%clk 0:02:59]} 5. c4 {[%clk 0:02:33]} 5... d6
{[%clk 0:02:57.6]} 6. b3 {[%clk 0:02:31.3]} 6... g6 {[%clk 0:02:57.3]} 7. Bb2
{[%clk 0:02:30.6]} 7... Bg7 {[%clk 0:02:57.1]} 8. Nbd2 {[%clk 0:02:29.2]} 8...
O-O {[%clk 0:02:56.8]} 9. Ra2 {[%clk 0:02:28.6]} 9... e6 {[%clk 0:02:54.1]} 10.
e4 {[%clk 0:02:25.3]} 10... exd5 {[%clk 0:02:53.8]} 11. exd5 {[%clk 0:02:24.6]}
11... Re8+ {[%clk 0:02:52.1]} 12. Be2 {[%clk 0:02:23.9]} 12... Qe7 {[%clk
0:02:53]} 13. Nf1 {[%clk 0:02:16.3]} 13... h5 {[%clk 0:02:35]} 14. Ne3 {[%clk
0:02:11.9]} 14... Ng4 {[%clk 0:02:34.2]} 15. Bxg7 {[%clk 0:02:08.9]} 15... Nxe3
{[%clk 0:02:33.6]} 16. fxe3 {[%clk 0:02:03.6]} 16... Kxg7 {[%clk 0:02:33.4]} 17.
Bd3 {[%clk 0:01:43.4]} 17... Bg4 {[%clk 0:02:16.2]} 18. e4 {[%clk 0:01:35.1]}
18... Nd7 {[%clk 0:02:12]} 19. O-O {[%clk 0:01:33]} 19... Ne5 {[%clk 0:01:31.1]}
20. Raf2 {[%clk 0:01:16.4]} 20... f6 {[%clk 0:01:08]} 21. Be2 {[%clk 0:01:08.3]}
21... Nxf3+ {[%clk 0:00:57.2]} 22. Bxf3 {[%clk 0:01:04]} 22... Bxf3 {[%clk
0:00:53.5]} 23. Rxf3 {[%clk 0:00:54.9]} 23... Rf8 {[%clk 0:00:53.9]} 24. Qd3
{[%clk 0:00:52.3]} 24... Rae8 {[%clk 0:00:53]} 25. Re3 {[%clk 0:00:41.5]} 25...
Qe5 {[%clk 0:00:53.3]} 26. h3 {[%clk 0:00:36.8]} 26... Re7 {[%clk 0:00:52.7]}
27. Rfe1 {[%clk 0:00:35.8]} 27... Rfe8 {[%clk 0:00:51.7]} 28. Kf2 {[%clk
0:00:33.9]} 28... h4 {[%clk 0:00:45.2]} 29. Qe2 {[%clk 0:00:32.4]} 29... f5
{[%clk 0:00:37.2]} 30. exf5 {[%clk 0:00:30.7]} 30... Qxf5+ {[%clk 0:00:35.3]}
31. Qf3 {[%clk 0:00:29.4]} 31... Qc2+ {[%clk 0:00:21.2]} 32. R1e2 {[%clk
0:00:28.5]} 32... Rxe3 {[%clk 0:00:17.9]} 33. Rxc2 {[%clk 0:00:25]} 33... Rxf3+
{[%clk 0:00:17]} 34. Kxf3 {[%clk 0:00:24.5]} 34... Re1 {[%clk 0:00:16.6]} 35.
Re2 {[%clk 0:00:18]} 35... Rxe2 {[%clk 0:00:16.5]} 36. Kxe2 {[%clk 0:00:17.6]}
36... Kf6 {[%clk 0:00:17.4]} 37. Kf3 {[%clk 0:00:14.8]} 37... Kf5 {[%clk
0:00:13.8]} 38. g4+ {[%clk 0:00:13.2]} 38... Ke5 {[%clk 0:00:11.9]} 39. Ke3
{[%clk 0:00:09.6]} 39... a5 {[%clk 0:00:10]} 40. Kf3 {[%clk 0:00:07.4]} 40...
Kd4 {[%clk 0:00:09.6]} 41. Kf4 {[%clk 0:00:07.6]} 41... Kc3 {[%clk 0:00:10.1]}
42. Kg5 {[%clk 0:00:07.9]} 42... Kxb3 {[%clk 0:00:11]} 43. Kxg6 {[%clk
0:00:08.1]} 43... Kxc4 {[%clk 0:00:11.9]} 44. Kf6 {[%clk 0:00:06.4]} 44... b3
{[%clk 0:00:12.8]} 45. g5 {[%clk 0:00:06.6]} 45... b2 {[%clk 0:00:13.4]} 46. g6
{[%clk 0:00:06.9]} 46... b1=Q {[%clk 0:00:13.9]} 47. g7 {[%clk 0:00:07.1]} 47...
Qb2+ {[%clk 0:00:13.2]} 0-1

[Event "*** SCC Grand Prix: Titled Tuesday Blitz"]
[Site "Chess.com"]
[Date "2020.06.09"]
[Round "6"]
[White "Bhagya_2312"]
[Black "von_Eschenbach"]
[Result "0-1"]
[WhiteElo "2131"]
[BlackElo "2355"]
[TimeControl "180+1"]
[EndTime "10:07:26 PDT"]
[Termination "von_Eschenbach won by resignation"]

1. e4 {[%clk 0:03:00.9]} 1... c5 {[%clk 0:02:58.9]} 2. Nf3 {[%clk 0:03:00.8]}
2... e6 {[%clk 0:02:59.1]} 3. d4 {[%clk 0:03:00.7]} 3... cxd4 {[%clk 0:02:59.4]}
4. Nxd4 {[%clk 0:03:00.8]} 4... Nc6 {[%clk 0:03:00.1]} 5. Nc3 {[%clk 0:02:59.9]}
5... Nf6 {[%clk 0:03:00.3]} 6. Nxc6 {[%clk 0:02:57.1]} 6... bxc6 {[%clk
0:02:59.6]} 7. Bd3 {[%clk 0:02:57]} 7... d5 {[%clk 0:02:55.6]} 8. O-O {[%clk
0:02:56.4]} 8... Be7 {[%clk 0:02:38.3]} 9. Qf3 {[%clk 0:02:52.3]} 9... O-O
{[%clk 0:02:34.4]} 10. Re1 {[%clk 0:02:51.9]} 10... Bb7 {[%clk 0:02:18.1]} 11.
Qh3 {[%clk 0:02:43.7]} 11... g6 {[%clk 0:02:05]} 12. Bh6 {[%clk 0:02:32.3]}
12... Re8 {[%clk 0:02:04.5]} 13. Rad1 {[%clk 0:02:27.3]} 13... c5 {[%clk
0:02:02.4]} 14. b3 {[%clk 0:02:18.9]} 14... Qa5 {[%clk 0:01:50.8]} 15. Bd2
{[%clk 0:02:09.5]} 15... Qc7 {[%clk 0:01:48.5]} 16. e5 {[%clk 0:01:37.9]} 16...
Nd7 {[%clk 0:01:47.7]} 17. f4 {[%clk 0:01:36.4]} 17... c4 {[%clk 0:01:47.2]} 18.
bxc4 {[%clk 0:01:31.7]} 18... dxc4 {[%clk 0:01:46.9]} 19. Be4 {[%clk 0:01:29.3]}
19... Nc5 {[%clk 0:01:36.4]} 20. Bxb7 {[%clk 0:01:27.6]} 20... Qxb7 {[%clk
0:01:36.6]} 21. Be3 {[%clk 0:01:21.6]} 21... Rad8 {[%clk 0:01:34.6]} 22. Bxc5
{[%clk 0:01:08]} 22... Bxc5+ {[%clk 0:01:33.9]} 23. Kh1 {[%clk 0:01:08]} 23...
Qb2 {[%clk 0:01:04.5]} 24. Ne4 {[%clk 0:01:02.1]} 24... Be7 {[%clk 0:00:59]} 25.
Rb1 {[%clk 0:00:24.4]} 25... Qxc2 {[%clk 0:00:54.8]} 26. Nf6+ {[%clk 0:00:24.3]}
26... Bxf6 {[%clk 0:00:54.3]} 27. exf6 {[%clk 0:00:24.4]} 27... Qf5 {[%clk
0:00:37.4]} 28. Qxf5 {[%clk 0:00:18.7]} 28... gxf5 {[%clk 0:00:33.9]} 29. Rbc1
{[%clk 0:00:16.4]} 29... Rc8 {[%clk 0:00:33.9]} 30. Rc3 {[%clk 0:00:15]} 30...
Rc5 {[%clk 0:00:32.9]} 31. g3 {[%clk 0:00:12.9]} 31... Rd8 {[%clk 0:00:30.9]}
32. Kg2 {[%clk 0:00:11]} 32... Rd2+ {[%clk 0:00:30.2]} 33. Kf3 {[%clk
0:00:09.5]} 33... Rxa2 {[%clk 0:00:29.8]} 34. Rd1 {[%clk 0:00:09.6]} 34... h5
{[%clk 0:00:21.5]} 35. Rd4 {[%clk 0:00:08]} 35... Ra4 {[%clk 0:00:19.3]} 36.
Rd8+ {[%clk 0:00:07.1]} 36... Kh7 {[%clk 0:00:18.7]} 37. h3 {[%clk 0:00:04.6]}
37... Kg6 {[%clk 0:00:18.5]} 38. g4 {[%clk 0:00:05]} 38... hxg4+ {[%clk
0:00:18.1]} 39. hxg4 {[%clk 0:00:05.2]} 39... fxg4+ {[%clk 0:00:18.7]} 40. Kxg4
{[%clk 0:00:05.6]} 40... Kxf6 {[%clk 0:00:19.6]} 41. Rd6 {[%clk 0:00:04.9]}
41... a5 {[%clk 0:00:18.6]} 42. Rh3 {[%clk 0:00:04]} 42... Rb4 {[%clk
0:00:16.5]} 43. Rd7 {[%clk 0:00:04.1]} 43... c3 {[%clk 0:00:11.9]} 44. Rh6+
{[%clk 0:00:04]} 44... Kg7 {[%clk 0:00:10.5]} 45. Rd8 {[%clk 0:00:04.2]} 45...
Kxh6 {[%clk 0:00:09.3]} 0-1